Workbook

Sheet Berechnung
A1: Berechnung Auslandszuschlag (AZ)
D2: EPZ-Rechner (Neurecht 18,6%) | M2: EPZ-Rechner (Neurecht 6%)
A3: Grundgehalt | B3: 0 | D3: Zahlungsbeginn EPZ | F3: ab | G3: 01.05.2026 | M3: Zahlungsbeginn EPZ | O3: ab | P3: 01.05.2026
A4: Amtszulage | B4: 0 | D4: Grundeinkommen | G4: =B3 -> 0 | M4: Grundeinkommen | P4: =B3 -> 0
A5: Dienstort | B5: Rukla | D5: Amtszulage | G5: =B4 -> 0 | I5: A14 | J5: 7383.21 | K5: max EPZ | L5: =G8 -> 0 | M5: Amtszulage | P5: =B4 -> 0 | R5: A14 | T5: 7182.11
A6: Gehaltspanne | B6: =INDEX('AZ Tabelle ab 01.05.2026'!B4:P4, MATCH(1, (Berechnung!B3+Berechnung!B4>='AZ Tabelle ab 01.05.2026'!B5:P5)*(Berechnung!B3+Berechnung!B4<=IF('AZ Tabelle ab 01.05.2026'!B7:P7="",1E+99,'AZ Tabelle ab 01.05.2026'!B7:P7)), 0)) -> 1 | D6: Anlagebetrag | I6: <A14 | J6: =IF(G4+G5<=J5,G4+G5,J5) -> 0 | K6: Hälfte EPZ | L6: =G7/2 -> 0 | M6: Auslandszuschlag | P6: =B8 -> 1865.45 | R6: <A14 | T6: =IF(P4+P5<=T5,P4+P5,T5) -> 0
A7: Zonenstufe | B7: =VLOOKUP(B5,'DO Litauen ab 01.07.2025'!B2:C8,2,FALSE) -> 9 | D7: max EPZ 18,6 % | G7: =IF(J6<J5,L10,L11) -> 0 | I7: Grenze Nettoerwerbseinkommen Ehegatte ab 01.04.2025 | J7: 1112 | K7: Anrechn. EK | L7: =J11-G10 -> 1206 | M7: 40 % Auslandszuschlag Ehepartner | P7: =(P6*0.4) -> 746.18 | R7: Grenze Nettoerwerbseinkommen Ehegatte 2025 | T7: 1112
A8: Grundbetrag AZ | B8: =INDEX('AZ Tabelle ab 01.05.2026'!B10:P29, MATCH(B7,'AZ Tabelle ab 01.05.2026'!A10:A29,0), MATCH(B6,'AZ Tabelle ab 01.05.2026'!B4:P4,0)) -> 1865.45 | D8: zulässiger Erhöhungsbetrag | G8: =IF(G7>G6,G6,G7) -> 0 | I8: Grenze Nettoerwerbseinkommen Ehegatte ab 01.01.2026 | J8: 1206 | K8: gekürzte 18,6 | L8: =G7+L7 -> 1206 | M8: Familinzuschlag Stufe 1 | P8: 181.36 | R8: Grenze Nettoerwerbseinkommen Ehegatte 2026 | T8: 1206
D9: Mindestbelassung 1/2 EPZ bei Anrechnung Einkommen | G9: =L6 -> 0 | J9: 01.04.2025 | M9: max. EPZ 6 % | P9: =SUM(P4:P8) * 0.06 -> 167.5794 | T9: =IF(P3="01.07.2025",T7,T8) -> 1206
A10: Kürzungsregelung (§53 Abs. 2 BBesG) | D10: Einkommen Ehepartner | G10: 0 | J10: 01.05.2026 | K10: EPZ 18,6 | L10: =(G4+G5)*0.186 -> 0 | M10: Mindestbelassung 1/2 EPZ | P10: =P15 -> 83.7897 | T10: 01.01.2026
A11: Verpflichtung Gemeinschaftsunterkunft | D11: EPZ nach Abzug Einkommen | G11: =IF(IF(L8>G8,G8,IF(L8<L6,L6,L8))>G8,G8,IF(L8>G8,G8,IF(L8<L6,L6,L8))) -> 0 | J11: =IF(G3="01.04.2025",J7,J8) -> 1206 | K11: EPZ Max St 8 | L11: =J5*0.186 -> 1373.27706 | M11: Einkommen Ehepartner | P11: 0 | T11: 01.05.2026
A12: Nein | B12: =IF(A12="Ja ( 15% Abzug )",B8*-0.15,B8*0) -> 0 | M12: EPZ nach Abzug Einkommen | P12: =IF(IF(P17>P9,P9,IF(P17<P15,P15,P17))>P9,P9,IF(P17>P9,P9,IF(P17<P15,P15,P17))) -> 167.5794
A13: Verpflichtung Gemeinschaftsverpflegung
A14: Nein | B14: =IF(A14="Ja ( 15% Abzug )",B8*-0.15,B8*0) -> 0 | M14: max EPZ | P14: =P9 -> 167.5794
M15: Hälfte EPZ | P15: =P9/2 -> 83.7897
A16: Berücksichtigungsfähige Personen im Ausland | M16: Anrechn. EK | P16: =T9-P11 -> 1206
A17: Ehegatte am ausl. DO (40% vom Grundbetrag) | M17: gekürzte 6% | P17: =P9+P16 -> 1373.5794
A18: Nein | B18: =IF(A18="Ja",B8*0.4, 0) -> 0
A19: Anzahl Kinder am ausl. DO nach Anlage VI. 2 BBesG
A20: 0 | B20: =IF(A20=0,0, IF(AND(B7>=1,B7<=20), A20*INDEX('AZ Tabelle ab 01.05.2026'!S:S,B7+4), 0)) -> 0
A22: EPZ (Ehepartnerzuschlag) gem. A-1452/4
A23: Nein | B23: =IF(A23="Ja mit 18,6% nach §10 Abs. 2 AuslZuschlV", G11, IF(A23="Ja mit 6% nach §13 Abs. 2 AuslZuschlV", P12, 0)) -> 0
A25: Berechnung Auslandstrennungsgeld (ATG)
A26: Auslandstrennungstagegeld (ATTG) §7 ATGV
A27: Abhängig vom Forderungsnachweis! 75 % des Tagegelds nach § 3 Abs. 1 S. 1 der Auslandsreisekostenverordnung (ARV); max. 28 € täglich (in den ersten 3 Monaten steuerfrei). Bei vorhandener Gemeinschaftsverpflegung in Höhe der Sachbezugswerte. Kein Anspruch bei voll ausgestatteter Küche!
A28: Auslandstrennungsübernachungsgeld (ATÜG) §8 ATGV
A29: Erstattung in Höhe der Mieteigenbelastung, neben dem vorrangig zu gewährenden Mietzuschuss nach § 54 BBesG (Mietobergrenze ist beim BAIUDBw KompZ TM Bw oder der jeweiligen BWVSt zu erfragen).
A30: Auslandstrennungsbedingter Mehraufwand (AMA) § 9 ATGV für die im Inland zurückbleibenden Personen im gemeinsamen Haushalt
A31: Für Ehegatten (70% vom Ehegattenzuschlag im Ausland)
A32: Nein | B32: =IF(A32="Ja",B8*40%*70%,0) -> 0
A33: Anzahl Kinder im Inland (70% vom Kinderzuschlag im Ausland)
A34: 0 | B34: =INDEX('AZ Tabelle ab 01.05.2026'!S5:S24,B7)*0.7*A34 -> 0
A35: Gesamt (AZ + ATG) | B35: =B8+B12+B14+B18+B20+B23+B32+B34 -> 1865.45
A36: Das Berechnungstool dient ausschließlich der unverbindlichen Information. Eine Gewähr für die Aktualität, Vollständigkeit und Richtigkeit der verwendeten Daten sowie der berechneten Ergebnisse wird nicht übernommen. BVA, Stand 03/2026

Sheet AZ Tabelle ab 01.05.2026 (hidden)
A1: Gültigkeit ab April 2026
A2: VI.1 | R2: VI.2
A3: Grund- | B3: 1 | C3: 2 | D3: 3 | E3: 4 | F3: 5 | G3: 6 | H3: 7 | I3: 8 | J3: 9 | K3: 10 | L3: 11 | M3: 12 | N3: 13 | O3: 14 | P3: 15 | R3: Spalte1 | S3: Spalte2
A4: Gehaltsspanne | B4: 1 | C4: 2 | D4: 3 | E4: 4 | F4: 5 | G4: 6 | H4: 7 | I4: 8 | J4: 9 | K4: 10 | L4: 11 | M4: 12 | N4: 13 | O4: 14 | P4: 15 | R4: Zonenstufe | S4: Monatsbetrag
B5: 0 | C5: 2951.44 | D5: 3296.47 | E5: 3688.45 | F5: 4133.83 | G5: 4650.59 | H5: 5242.87 | I5: 5915.86 | J5: 6680.5 | K5: 7549.3 | L5: 8536.48 | M5: 9658.13 | N5: 10932.52 | O5: 12380.56 | P5: 14025.88 | R5: 1 | S5: 180.28
B6: bis | C6: bis | D6: bis | E6: bis | F6: bis | G6: bis | H6: bis | I6: bis | J6: bis | K6: bis | L6: bis | M6: bis | N6: bis | O6: bis | P6: bis | R6: 2 | S6: 198.73
B7: 2951.43 | C7: 3296.46 | D7: 3688.44 | E7: 4133.82 | F7: 4650.58 | G7: 5242.86 | H7: 5915.85 | I7: 6680.49 | J7: 7549.29 | K7: 8536.47 | L7: 9658.12 | M7: 10932.51 | N7: 12380.55 | O7: 14025.87 | P7: 999999.99 | R7: 3 | S7: 217.2
A8: Zonen- | R8: 4 | S8: 235.62
A9: stufe | R9: 5 | S9: 255.52
A10: 1 | B10: 1067.56 | C10: 1142.18 | D10: 1222.26 | E10: 1311.81 | F10: 1408.18 | G10: 1515.36 | H10: 1632.05 | I10: 1761 | J10: 1903.49 | K10: 2062.24 | L10: 2235.96 | M10: 2309.24 | N10: 2386.57 | O10: 2469.37 | P10: 2557.59 | R10: 6 | S10: 273.95
A11: 2 | B11: 1167.94 | C11: 1248.01 | D11: 1334.89 | E11: 1429.88 | F11: 1534.38 | G11: 1649.74 | H11: 1774.58 | I11: 1912.99 | J11: 2065 | K11: 2233.21 | L11: 2417.8 | M11: 2501.92 | N11: 2591.51 | O11: 2686.48 | P11: 2788.27 | R11: 7 | S11: 292.42
A12: 3 | B12: 1267.04 | C12: 1353.89 | D12: 1447.5 | E12: 1549.29 | F12: 1661.95 | G12: 1784.07 | H12: 1918.42 | I12: 2065 | J12: 2226.46 | K12: 2404.21 | L12: 2598.32 | M12: 2694.65 | N12: 2796.43 | O12: 2904.98 | P12: 3018.96 | R12: 8 | S12: 310.89
A13: 4 | B13: 1366.08 | C13: 1459.73 | D13: 1560.17 | E13: 1668.72 | F13: 1788.12 | G13: 1918.42 | H13: 2060.89 | I13: 2216.94 | J13: 2387.95 | K13: 2575.21 | L13: 2780.11 | M13: 2887.35 | N13: 3001.35 | O13: 3122.11 | P13: 3249.64 | R13: 9 | S13: 329.3
A14: 5 | B14: 1466.53 | C14: 1565.6 | D14: 1672.81 | E14: 1788.12 | F14: 1914.34 | G14: 2052.75 | H14: 2203.39 | I14: 2367.61 | J14: 2548.08 | K14: 2746.2 | L14: 2961.97 | M14: 3080.06 | N14: 3206.25 | O14: 3339.24 | P14: 3481.7 | R14: 10 | S14: 347.79
A15: 6 | B15: 1565.6 | C15: 1671.47 | D15: 1784.07 | E15: 1907.56 | F15: 2041.91 | G15: 2187.12 | H15: 2345.88 | I15: 2519.57 | J15: 2709.56 | K15: 2917.17 | L15: 3143.81 | M15: 3272.72 | N15: 3411.19 | O15: 3556.39 | P15: 3712.45 | R15: 11 | S15: 366.26
A16: 7 | B16: 1666.01 | C16: 1777.29 | D16: 1896.71 | E16: 2026.95 | F16: 2168.12 | G16: 2321.46 | H16: 2489.72 | I16: 2671.57 | J16: 2871.05 | K16: 3088.17 | L16: 3325.67 | M16: 3466.79 | N16: 3616.07 | O16: 3774.84 | P16: 3943.12 | R16: 12 | S16: 384.69
A17: 8 | B17: 1765.06 | C17: 1883.14 | D17: 2009.36 | E17: 2146.43 | F17: 2294.3 | G17: 2455.78 | H17: 2632.25 | I17: 2823.57 | J17: 3031.19 | K17: 3259.15 | L17: 3507.51 | M17: 3659.5 | N17: 3820.97 | O17: 3991.98 | P17: 4173.8 | R17: 13 | S17: 403.14
A18: 9 | B18: 1865.45 | C18: 1989 | D18: 2121.95 | E18: 2265.8 | F18: 2421.88 | G18: 2591.51 | H18: 2774.7 | I18: 2975.55 | J18: 3192.65 | K18: 3430.16 | L18: 3689.33 | M18: 3852.19 | N18: 4025.89 | O18: 4209.08 | P18: 4404.51 | R18: 14 | S18: 421.62
A19: 10 | B19: 1964.54 | C19: 2094.83 | D19: 2234.6 | E19: 2385.22 | F19: 2548.08 | G19: 2725.86 | H19: 2917.17 | I19: 3126.18 | J19: 3354.14 | K19: 3601.16 | L19: 3869.85 | M19: 4044.9 | N19: 4229.45 | O19: 4426.23 | P19: 4635.21 | R19: 15 | S19: 440.05
A20: 11 | B20: 2063.65 | C20: 2200.66 | D20: 2345.88 | E20: 2504.66 | F20: 2675.63 | G20: 2860.18 | H20: 3061.06 | I20: 3278.18 | J20: 3514.31 | K20: 3772.1 | L20: 4051.7 | M20: 4237.61 | N20: 4434.34 | O20: 4644.73 | P20: 4867.28 | R20: 16 | S20: 458.53
A21: 12 | B21: 2164.04 | C21: 2306.49 | D21: 2458.54 | E21: 2624.06 | F21: 2801.83 | G21: 2994.55 | H21: 3203.53 | I21: 3430.16 | J21: 3675.76 | K21: 3943.12 | L21: 4233.53 | M21: 4430.28 | N21: 4639.25 | O21: 4861.84 | P21: 5097.96 | R21: 17 | S21: 476.99
A22: 13 | B22: 2263.12 | C22: 2412.35 | D22: 2571.11 | E22: 2742.15 | F22: 2928.05 | G22: 3128.9 | H22: 3346.04 | I22: 3582.15 | J22: 3837.27 | K22: 4114.11 | L22: 4415.35 | M22: 4623.01 | N22: 4844.2 | O22: 5078.94 | P22: 5328.68 | R22: 18 | S22: 495.42
A23: 14 | B23: 2363.52 | C23: 2518.21 | D23: 2683.78 | E23: 2861.55 | F23: 3055.62 | G23: 3263.23 | H23: 3488.5 | I23: 3732.75 | J23: 3997.43 | K23: 4285.1 | L23: 4597.22 | M23: 4815.69 | N23: 5049.12 | O23: 5296.09 | P23: 5559.34 | R23: 19 | S23: 515.27
A24: 15 | B24: 2462.58 | C24: 2624.06 | D24: 2795.08 | E24: 2980.96 | F24: 3181.82 | G24: 3397.59 | H24: 3632.35 | I24: 3884.77 | J24: 4158.91 | K24: 4456.11 | L24: 4779.05 | M24: 5009.75 | N24: 5253.99 | O24: 5514.6 | P24: 5790.04 | R24: 20 | S24: 533.74
A25: 16 | B25: 2561.63 | C25: 2729.93 | D25: 2907.69 | E25: 3100.4 | F25: 3308.02 | G25: 3533.31 | H25: 3774.84 | I25: 4036.73 | J25: 4320.36 | K25: 4627.07 | L25: 4959.55 | M25: 5202.43 | N25: 5458.94 | O25: 5731.69 | P25: 6020.76
A26: 17 | B26: 2662.08 | C26: 2835.77 | D26: 3020.32 | E26: 3219.79 | F26: 3435.59 | G26: 3667.64 | H26: 3917.34 | I26: 4188.72 | J26: 4481.87 | K26: 4798.05 | L26: 5141.38 | M26: 5395.16 | N26: 5663.83 | O26: 5948.82 | P26: 6252.8
A27: 18 | B27: 2761.15 | C27: 2940.24 | D27: 3132.95 | E27: 3339.24 | F27: 3561.78 | G27: 3801.98 | H27: 4061.17 | I27: 4340.72 | J27: 4641.99 | K27: 4969.03 | L27: 5323.24 | M27: 5587.86 | N27: 5868.77 | O27: 6167.31 | P27: 6483.52
A28: 19 | B28: 2861.55 | C28: 3046.12 | D28: 3245.59 | E28: 3458.68 | F28: 3687.96 | G28: 3936.33 | H28: 4203.66 | I28: 4491.37 | J28: 4803.51 | K28: 5140.04 | L28: 5505.1 | M28: 5780.53 | N28: 6073.67 | O28: 6384.47 | P28: 6714.2
A29: 20 | B29: 2960.6 | C29: 3151.95 | D29: 3356.85 | E29: 3578.07 | F29: 3815.56 | G29: 4070.68 | H29: 4346.15 | I29: 4643.34 | J29: 4964.99 | K29: 5311.01 | L29: 5686.93 | M29: 5973.26 | N29: 6278.58 | O29: 6601.54 | P29: 6944.89
A32: V. Familienzuschlag Stufe 1
B33: 181.36

Sheet DO Litauen ab 01.07.2025 (hidden)
A1: Land | B1: Dienstort | C1: Zonenstufe 01.07.2025
B2: Rukla | C2: 9
B3: Nemencine | C3: 5
B4: Rokantiskes | C4: 5
B5: Rudninkai | C5: 9
B6: Kaunas | C6: 5
B7: Wilna | C7: 5
B8: Klaipeda | C8: 9
B18: Ja ( 15% Abzug )
B19: Nein

Sheet EPZ 18,6 % (hidden)
D1: EPZ Rechner (Neurecht 18,6%)
D3: Zahlungsbeginn EPZ | F3: ab | G3: 01.01.2026
D4: Grundeinkommen | G4: 3000
D5: Amtszulage | G5: 200 | I5: A14 | K5: 7383.21
D6: Anlagebetrag | G6: 600 | I6: <A14 | K6: =IF(G4+G5<=K5,G4+G5,K5) -> 3200
D7: max EPZ 18,6 % | G7: =IF(K6<K5,G19,G20) -> 595.2 | I7: Grenze Nettoerwerbseinkommen Ehegatte ab 01.04.2025 | K7: 1112
D8: zulässiger Erhöhungsbetrag | G8: =IF(G7>G6,G6,G7) -> 595.2 | I8: Grenze Nettoerwerbseinkommen Ehegatte ab 01.01.2026 | K8: 1206
D9: Mindestbelassung 1/2 EPZ | G9: =G15 -> 297.6
D10: Einkommen Ehepartner | G10: 3000
D11: EPZ nach Abzug Einkommen | G11: =IF(IF(G17>G8,G8,IF(G17<G15,G15,G17))>G8,G8,IF(G17>G8,G8,IF(G17<G15,G15,G17))) -> 297.6
K12: 01.04.2025
K13: 01.05.2026
D14: max EPZ | G14: =G8 -> 595.2 | K14: =IF(G3="01.04.2025",K7,K8) -> 1206
D15: Hälfte EPZ | G15: =G7/2 -> 297.6
D16: Anrechn. EK | G16: =K14-G10 -> -1794
D17: gekürzte 18,6 | G17: =G7+G16 -> -1198.8
D19: EPZ 18,6 | G19: =(G4+G5)*0.186 -> 595.2
D20: EPZ Max A8 | G20: =K5*0.186 -> 1373.27706

Sheet EPZ 6 % (hidden)
D1: EPZ Rechner (Neurecht 6%)
D3: Zahlungsbeginn EPZ | F3: ab | G3: 01.01.2026
D4: Grundeinkommen | G4: 3000
D5: Amtszulage | G5: 200 | I5: A14 | K5: 7383.21 | N5: Vor 01.04.2025
D6: Auslandszuschlag | G6: 1700 | I6: <A14 | K6: =IF(G4+G5<=K5,G4+G5,K5) -> 3200
D7: 40 % EB | G7: =(G6*0.4) -> 680 | I7: Grenze Nettoerwerbseinkommen Ehegatte 2025 | K7: 1112 | N7: Ab 01.04.2025
D8: Familinzuschlag Stufe 1 | G8: 170 | I8: Grenze Nettoerwerbseinkommen Ehegatte 2026 | K8: 1206
D9: max. EPZ 6 % | G9: =SUM(G4:G8) * 0.06 -> 345 | K9: =IF(G3="01.07.2025",K7,K8) -> 1206
D10: Mindestbelassung 1/2 EPZ | G10: =G15 -> 172.5 | K10: 01.01.2026
D11: Einkommen Ehepartner | G11: 1113 | K11: 01.07.2025
D12: EPZ nach Abzug Einkommen | G12: =IF(IF(G17>G9,G9,IF(G17<G15,G15,G17))>G9,G9,IF(G17>G9,G9,IF(G17<G15,G15,G17))) -> 345
D14: max EPZ | G14: =G9 -> 345
D15: Hälfte EPZ | G15: =G9/2 -> 172.5
D16: Anrechn. EK | G16: =K9-G11 -> 93
D17: gekürzte 6% | G17: =G9+G16 -> 438
